Cogmind - Beta 9.1 @@@ ROGUE MODE // 2019.11.12 @ 02:45:44 Player: Trione Result: Destroyed by Y-45 Defender with Heavy Assault Rifle Performance ------------- Evolutions (2) 1000 Regions Visited (8) 1600 Robots Destroyed (162) 810 Value Destroyed (4857) 4857 Prototype IDs (27) 540 Alien Tech Used (0) 0 Bonus (1821) 1821 TOTAL SCORE: 10628 Bonus ------- High Alert Combat Kills 801 Follower Combat Kills 320 Entered Garrisons 200 Used RIF Installer 500 Cogmind --------- Core Integrity 0/550 Matter 252/300 Energy 140/150 System Corruption 4% Temperature Cool (193) Location -8/Storage Parts ------- Power (1) Light Angular Momentum Engine Propulsion (2) Wheel Armored Wheel Utility (5) High-capacity Storage Unit High-capacity Storage Unit High-capacity Storage Unit High-capacity Storage Unit Medium Reactive Plating Weapon (3) Lightning Gun Makeshift Sword Inventory (36) Light Nuclear Core Armored Treads Wheel Wheel Compact Wheel Improved Heat Sink High-capacity Storage Unit High-capacity Storage Unit Improved Sensor Array Advanced Signal Interpreter Modified TNC Advanced Targeting Computer Improved Utility Shielding Medium Reactive Plating Medium Reactive Plating Medium Reactive Plating Hacking Suite Relay Coupler [NC] (21) Relay Coupler [NC] (28) Advanced Beam Rifle Heavy Laser EM Pulse Cannon Heavy Particle Cannon Heavy Particle Cannon Flak Gun Flak Gun Improved Light Cannon Advanced EMP Blaster Advanced EMP Blaster Advanced EMP Blaster Improved Grenade Launcher Heavy Rocket Launcher Heavy Rocket Launcher Improved Datajack Katana Peak State ------------ Power Light Angular Momentum Engine Propulsion Armored Treads Armored Wheel Utility High-capacity Storage Unit High-capacity Storage Unit High-capacity Storage Unit High-capacity Storage Unit Hardened Medium Armor Plating Weapon Flak Gun Flak Gun Improved Light Cannon Inventory Wheel Wheel Improved Heat Sink High-capacity Storage Unit High-capacity Storage Unit Improved Sensor Array Advanced Signal Interpreter Modified TNC Advanced Targeting Computer Improved Utility Shielding Medium Reactive Plating Medium Reactive Plating Medium Reactive Plating Medium Reactive Plating Hacking Suite Relay Coupler [NC] Relay Coupler [NC] Lightning Gun Lightning Gun Precision Beam Rifle Advanced Beam Rifle Heavy Laser EM Pulse Cannon Heavy Particle Cannon Heavy Particle Cannon Advanced EMP Blaster Advanced EMP Blaster Advanced EMP Blaster Improved Grenade Launcher Heavy Rocket Launcher Heavy Rocket Launcher Improved Datajack Katana Makeshift Sword [Rating: 37] Favorites ----------- Power Deuterium Engine Engine Deuterium Engine Power Core Light Nuclear Core Propulsion Compact Wheel Treads Armored Treads Wheel Compact Wheel Utility High-capacity Storage Unit Device Improved Heat Sink Storage High-capacity Storage Unit Processor Advanced Melee Analysis Suite Hackware Relay Coupler [Sentry] Protection Hardened Medium Armor Plating Weapon Autogun Energy Gun Precision Beam Rifle Energy Cannon Heavy Particle Cannon Ballistic Gun Autogun Ballistic Cannon Improved Light Cannon Launcher Heavy Rocket Launcher Slashing Weapon Makeshift Sword Build | -11 -10 -10 -10 -9 -8 -8 -8 -8 ------- Run | Scr Mat Min Exi Min Mat Gar Mat Sto Slots Evolved 4 | . . . . . 4 . . . Power . | . . . . . . . . . Propulsion . | . . . . . . . . . Utility 3 | . . . . . 3 . . . Weapon 1 | . . . . . 1 . . . Parts Attached 146 | 6 7 8 1 1 57 31 27 8 Power 9 | 1 1 2 . . 3 . 2 . Engine 8 | 1 1 2 . . 3 . 1 . Core 1 | . . . . . . . 1 . Reactor . | . . . . . . . . . Propulsion 26 | 2 . 5 . . 11 5 3 . Treads 6 | . . 2 . . 2 1 1 . Leg . | . . . . . . . . . Wheel 20 | 2 . 3 . . 9 4 2 . Hover . | . . . . . . . . . Flight . | . . . . . . . . . Utility 33 | 1 4 . . . 13 5 6 4 Device 3 | . . . . . 1 1 1 . Storage 14 | 1 4 . . . 5 . 1 3 Processor 1 | . . . . . . 1 . . Hackware 1 | . . . . . . 1 . . Protection 14 | . . . . . 7 2 4 1 Artifact . | . . . . . . . . . Weapon 78 | 2 2 1 1 1 30 21 16 4 Energy Gun 10 | . . . . . 2 2 3 3 Energy Cannon 7 | . . . . . 1 3 3 . Ballistic Gun 35 | 2 2 1 . 1 16 8 5 . Ballistic Cannon 3 | . . . . . 1 1 1 . Launcher 9 | . . . . . 4 3 1 1 Special Weapon . | . . . . . . . . . Impact Weapon . | . . . . . . . . . Slashing Weapon 14 | . . . 1 . 6 4 3 . Piercing Weapon . | . . . . . . . . . Special Melee Weapon . | . . . . . . . . . Unidentified Prototypes 5 | . . . . . 4 . 1 . Parts Lost 27 | . . 3 . . 12 5 5 2 Power 4 | . . . . . 2 . 2 . Propulsion 9 | . . 2 . . 3 2 2 . Utility 4 | . . . . . 2 1 . 1 Weapon 10 | . . 1 . . 5 2 1 1 Highest Loss Streak 5 | . . 1 . . 4 5 2 2 Average Slot Usage (%) 98 | . 97 99 100 100 97 99 98 99 Engine 10 | . 14 14 14 14 8 9 6 9 Wheel 20 | . 28 26 28 28 17 17 16 18 Device 1 | . . . . . . 3 2 . Storage 32 | . 26 28 28 28 33 36 36 36 Protection 4 | . . . . . 8 4 6 8 Energy Gun 1 | . . . . . 2 2 1 8 Energy Cannon 1 | . . . . . 1 4 4 . Ballistic Gun 18 | . 27 27 24 19 19 12 13 9 Slashing Weapon 4 | . . . 3 8 2 6 6 9 Naked Turns . | . . . . . . . . . Heaviest Build 165 | 12 75 75 73 73 165 159 159 155 Greatest Support 32 | 32 32 32 32 32 32 26 24 22 Greatest Overweight (x) 13 | . 2 7 2 2 7 6 13 7 Average Overweight (x) 3 | . 1 2 2 2 5 5 6 6 Largest Inventory Capacity 36 | 6 20 20 20 20 36 36 36 36 Average Capacity 29 | 5 17 20 20 20 33 36 36 36 Most Carried 36 | 6 14 17 20 20 36 36 36 36 Average Carried 27 | 3 10 15 18 19 32 35 35 35 Final Capacity 36 | 6 20 20 20 20 36 36 36 36 Final Carried 36 | 6 14 17 20 20 36 36 36 35 Class Distribution -------------------- 60% | Hauler-Mutant 24% | Hauler-Tank 10% | Commander-Mutant 3% | Mutant Dominant Class ---------------- Hauler-Mutant | -10/Materials Hauler-Mutant | -10/Mines Commander-Mutant | -10/Exiles Commander-Mutant | -9/Mines Hauler-Tank | -8/Materials Hauler-Mutant | -8/Garrison Hauler-Mutant | -8/Materials Hauler-Mutant | -8/Storage Resources | -11 -10 -10 -10 -9 -8 -8 -8 -8 ----------- Run | Scr Mat Min Exi Min Mat Gar Mat Sto Matter Collected 4603 | 260 370 309 10 34 1778 831 867 144 Remotely . | . . . . . . . . . Salvage Created 6717 | . 572 321 188 110 2649 912 1549 416 Parts 355 | . 41 19 5 3 142 43 79 23 Haulers Intercepted 11 | . 2 . . . 5 . 3 1 Recyclers Shooed 6 | . . 1 . 1 2 . 2 . Parts Field Recycled . | . . . . . . . . . Retrieved Matter . | . . . . . . . . . Parts Self-Destructed . | . . . . . . . . . Prevented . | . . . . . . . . . Kills | -11 -10 -10 -10 -9 -8 -8 -8 -8 ------- Run | Scr Mat Min Exi Min Mat Gar Mat Sto Combat Hostiles Destroyed 113 | . 9 9 . 2 42 20 25 6 Melee 6 | . . . . 1 2 1 2 . Guns 87 | . 9 9 . 1 31 13 21 3 Cannons 3 | . . . . . . 1 2 . AOE 16 | . . . . . 9 5 . 2 Classes Destroyed 15 | . 5 2 . 1 5 1 1 . Worker 13 | . 1 1 . . 8 . 3 . Builder 5 | . 1 . . . 3 . 1 . Hauler 11 | . 2 . . . 5 . 3 1 Recycler 11 | . . 2 . 1 4 . 3 1 Mechanic 1 | . . . . . 1 . . . Operator 2 | . . . . . 2 . . . Watcher 6 | . 2 . . . 4 . . . Swarmer 27 | . . 9 . . 7 6 5 . Grunt 60 | . 9 . . . 23 8 16 4 Brawler 4 | . . . . . . 4 . . Duelist 2 | . . . . . 1 1 . . Protector 1 | . . . . . . . 1 . Sentry 15 | . . . . . 9 1 3 2 Hunter 2 | . . . . . 2 . . . Assembled 2 | . . . . 2 . . . . Best Kill Streak 14 | . 4 4 . 1 14 4 9 3 Combat Bots Only 10 | . 3 3 . 1 10 4 8 2 Max Kills in Single Turn 3 | . 1 1 . 1 3 3 1 2 Gunslinging 1 | . . . . . 1 . . . Exploded 3 | . . . . . 2 3 . 1 Melee 1 | . . . . 1 1 1 1 . Uniques/NPCs Destroyed . | . . . . . . . . . Combat | -11 -10 -10 -10 -9 -8 -8 -8 -8 -------- Run | Scr Mat Min Exi Min Mat Gar Mat Sto Damage Taken 5509 | . 324 281 . 73 1708 1185 1552 386 Core 682 | . 57 52 . 12 162 113 217 69 Absorbed by Shields . | . . . . . . . . . Core Remaining (%) 75 | 100 . . . 51 . . . . Volleys Fired 332 | . 38 32 . 3 120 42 73 24 Largest 3 | . 2 2 . 2 3 3 3 2 Hottest 191 | . 46 46 . 46 142 150 191 110 Shots Fired 755 | . 76 60 . 6 311 105 158 39 Gun 698 | . 76 60 . 6 300 86 133 37 Cannon 42 | . . . . . 3 14 25 . Launcher 15 | . . . . . 8 5 . 2 Special . | . . . . . . . . . Kinetic 617 | . 76 60 . 6 269 76 118 12 Thermal 74 | . . . . . 34 22 18 . Explosive 13 | . . . . . 6 5 . 2 Electromagnetic 51 | . . . . . 2 2 22 25 Robot Hit Streak 15 | . 11 7 . 1 13 9 15 11 Robot Miss Streak 10 | . 3 3 . 2 10 7 8 5 Penetration Max 1 | . . . . . 1 . . . Secondary Targets 11 | . 1 1 . . 3 3 3 . Max Gunslinging Chain 1 | . 1 1 . . 1 1 1 . Shots Hit Robots 537 | . 41 31 10 11 202 81 134 27 Core Hits 369 | . 19 14 4 4 127 71 112 18 Critical Hits 3 | . . . . . 2 1 . . Critical Kills 2 | . . . . . 2 . . . Critical Parts Destroyed 1 | . . . . . . 1 . . Melee Attacks 107 | . . . 10 11 36 24 26 . Impact . | . . . . . . . . . Slashing 107 | . . . 10 11 36 24 26 . Piercing . | . . . . . . . . . Sneak Attacks 17 | . . . . 3 9 . 5 . Combat Hostiles . | . . . . . . . . . Follow-up Attacks . | . . . . . . . . . Damage Inflicted 14561 | . 624 432 1073 601 5787 2413 2949 682 Guns 7934 | . 624 432 . 29 3436 965 1974 474 Cannons 423 | . . . . . 44 141 238 . Explosions 1633 | . . . . . 954 471 . 208 Melee 4571 | . . . 1073 572 1353 836 737 . Ramming . | . . . . . . . . . Kinetic 6781 | . 624 432 . 29 2987 942 1563 204 Thermal 909 | . . . . . 493 164 252 . Explosive 1384 | . . . . . 705 471 . 208 Electromagnetic 916 | . . . . . 249 . 397 270 Impact . | . . . . . . . . . Slashing 4571 | . . . 1073 572 1353 836 737 . Piercing . | . . . . . . . . . Highest Corruption 4 | . 2 2 2 2 4 4 4 4 Average Corruption 3 | . 2 2 2 2 3 4 4 4 Corruption Purged . | . . . . . . . . . Effects 169 | . 3 6 9 10 70 29 34 8 Message Errors 44 | . 1 2 4 2 17 6 11 1 Matter Fused 33 | . . . . . 15 9 7 2 Heat Flow Errors 14 | . 1 . . 3 3 5 1 1 Energy Discharges 17 | . . 2 2 . 7 1 4 1 Parts Rejected 1 | . . . . . . 1 . . Data Loss (minor) 29 | . . 2 2 4 13 3 4 1 Targeting Errors 29 | . 1 . 1 1 15 4 6 1 Weapon Failures 2 | . . . . . . . 1 1 Overload Shots . | . . . . . . . . . Overflow Damage 1119 | . . . 189 120 493 105 212 . Projectiles . | . . . . . . . . . Explosions 20 | . . . . . 20 . . . Melee 1099 | . . . 189 120 473 105 212 . Knockbacks 4 | . . . . . 1 1 2 . Impact . | . . . . . . . . . Kinetic 4 | . . . . . 1 1 2 . Secondary . | . . . . . . . . . Self-Inflicted Damage 39 | . . . . . 39 . . . Shots 1 | . . . . . 1 . . . Rammed . | . . . . . . . . . Targets Rammed . | . . . . . . . . . Kicked . | . . . . . . . . . Crushed . | . . . . . . . . . Highest Temperature 295 | . 195 12 . 168 295 250 260 184 Average Temperature 67 | . 22 6 . 64 77 78 75 70 Received Heat Transfer 2373 | . 186 . . . 711 567 720 189 Effects 5 | . . . . . 4 1 . . Energy Bleed 2 | . . . . . 1 1 . . Interference 3 | . . . . . 3 . . . Siege Activations . | . . . . . . . . . Robots Corrupted 1 | . . . . . . . . 1 Combat Hostiles 1 | . . . . . . . . 1 Parts Fried 5 | . . . . . . . 2 3 Impact Corruptions . | . . . . . . . . . Robots Melted . | . . . . . . . . . Combat Hostiles . | . . . . . . . . . Parts Melted 1 | . . . . . 1 . . . Heat Transferred 1739 | . . . . . 1036 296 407 . Parts Sabotaged . | . . . . . . . . . Parts Stolen . | . . . . . . . . . Parts Stripped . | . . . . . . . . . Power Chain Reactions . | . . . . . . . . . Missiles Intercepted . | . . . . . . . . . Alert | -11 -10 -10 -10 -9 -8 -8 -8 -8 ------- Run | Scr Mat Min Exi Min Mat Gar Mat Sto Peak Influence 981 | . 210 194 . 80 681 981 898 834 Average Influence 421 | . 94 112 . 32 420 818 624 430 Maximum Alert Level 3 | . 1 1 . . 2 3 3 3 Low Security (%) 30 | . . . . . . . . . Level 1 18 | . . . . . . . . . Level 2 33 | . . . . . . . . . Level 3 17 | . . . . . . . . . Level 4 . | . . . . . . . . . Level 5 . | . . . . . . . . . High Security . | . . . . . . . . . Max Security . | . . . . . . . . . Squads Dispatched 20 | . 2 . . . 9 . 6 3 Investigation 4 | . 2 . . . 1 . 1 . Extermination . | . . . . . . . . . Reinforcement 13 | . . . . . 7 . 4 2 Assault 2 | . . . . . 1 . 1 . Garrison 1 | . . . . . . . . 1 Intercept . | . . . . . . . . . Construction Impeded 3 | . . . . . 1 . 2 . Haulers Reinforced . | . . . . . . . . . Stealth | -11 -10 -10 -10 -9 -8 -8 -8 -8 --------- Run | Scr Mat Min Exi Min Mat Gar Mat Sto Distress Signals 17 | . 2 . . 1 4 . 5 5 Communications Jammed . | . . . . . . . . . Distress Signals . | . . . . . . . . . Times Spotted 210 | . 15 11 . 24 74 18 55 13 Peak Tracking Total 15 | . 3 3 . 15 6 4 9 5 Tactical Retreats 23 | . . 2 . 2 6 1 10 2 Traps | -11 -10 -10 -10 -9 -8 -8 -8 -8 ------- Run | Scr Mat Min Exi Min Mat Gar Mat Sto Traps Triggered 12 | . 2 . . . 2 7 1 . Indirectly . | . . . . . . . . . Trap Hack Attempts . | . . . . . . . . . Triggered . | . . . . . . . . . Disarmed . | . . . . . . . . . Reprogrammed . | . . . . . . . . . Reused . | . . . . . . . . . Traps Extracted . | . . . . . . . . . Installed . | . . . . . . . . . Triggered . | . . . . . . . . . Machines | -11 -10 -10 -10 -9 -8 -8 -8 -8 ---------- Run | Scr Mat Min Exi Min Mat Gar Mat Sto Machines Disabled 10 | . . . . . 4 3 2 1 Max in Single Turn 1 | . . . . . 1 1 1 1 Garrison Access 1 | . . . . . . . 1 . Garrison Relay 2 | . . . . . . 2 . . Machines Sabotaged . | . . . . . . . . . Garrisons Compromised . | . . . . . . . . . Overloaded Fab Kills . | . . . . . . . . . Fab Network Shutdowns . | . . . . . . . . . Hacking | -11 -10 -10 -10 -9 -8 -8 -8 -8 --------- Run | Scr Mat Min Exi Min Mat Gar Mat Sto Machines Accessed 27 | . 5 . 4 1 8 . 8 1 Terminals 18 | . 5 . . 1 5 . 6 1 Fabricators . | . . . . . . . . . Repair Stations 1 | . . . . . . . 1 . Recycling Units 1 | . . . . . 1 . . . Scanalyzers 1 | . . . . . 1 . . . Garrison Access 2 | . . . . . 1 . 1 . Total Hacks 115 | . 18 . 41 4 26 . 23 3 Successful 97 | . 13 . 41 3 20 . 18 2 Failed 17 | . 4 . . 1 6 . 5 1 Catastrophic 2 | . . . . . 1 . 1 . Database Lockouts 1 | . 1 . . . . . . . Manual 64 | . 20 . 10 5 14 . 13 2 Terminals 59 | . 18 . . 4 17 . 17 3 Fabricators . | . . . . . . . . . Repair Stations 5 | . . . . . . . 5 . Recycling Units 2 | . . . . . 2 . . . Scanalyzers 6 | . . . . . 6 . . . Garrison Access 2 | . . . . . 1 . 1 . Terminal Hacks 61 | . 3 . 41 3 6 . 7 1 Record 41 | . . . 40 . . . 1 . Robot Analysis 5 | . 2 . . 2 1 . . . Open Door 1 | . . . . . . . . 1 Level Access Points 1 | . . . . 1 . . . . Branch Access Points 1 | . . . . . . . 1 . Machine Index 1 | . . . . . . . 1 . Terminal Index 2 | . . . . . 1 . 1 . Repair Station Index 1 | . . . . . . . 1 . Locate Traps 1 | . . . . . . . 1 . Zone Layout 6 | . 1 . . . 4 . 1 . EX-Prototype ID Bank 1 | . . . 1 . . . . . Fabricator Hacks . | . . . . . . . . . Repair Station Hacks 4 | . . . . . . . 4 . Scan Component 2 | . . . . . . . 2 . Repair 2 | . . . . . . . 2 . Recycling Unit Hacks 1 | . . . . . 1 . . . Retrieve Components 1 | . . . . . 1 . . . Scanalyzer 6 | . . . . . 6 . . . Insert Component 3 | . . . . . 3 . . . Analyze 3 | . . . . . 3 . . . Garrison Access Hacks 2 | . . . . . 1 . 1 . Unlock Access 1 | . . . . . 1 . . . Seal Access 1 | . . . . . . . 1 . Unauthorized Hacks 50 | . 20 . . . 15 . 12 3 Terminals 23 | . 10 . . . 6 . 6 1 Track 10 | . 4 . . . 2 . 3 1 Assimilate 1 | . 1 . . . . . . . Botnet 10 | . 4 . . . 3 . 3 . Disrupt 1 | . 1 . . . . . . . Operators 1 | . . . . . 1 . . . Fabricators . | . . . . . . . . . Repair Stations . | . . . . . . . . . Recycling Units . | . . . . . . . . . Scanalyzers . | . . . . . . . . . Garrison Access . | . . . . . . . . . Data Cores Recovered . | . . . . . . . . . Used . | . . . . . . . . . Hacking Detections 18 | . 4 . . 1 6 . 6 1 Full Trace Events 1 | . . . . . 1 . . . Feedback Events . | . . . . . . . . . Feedback Blocked . | . . . . . . . . . Robot Schematics Acquired . | . . . . . . . . . Robots Built . | . . . . . . . . . Matter . | . . . . . . . . . Time . | . . . . . . . . . Total Robot Build Rating . | . . . . . . . . . Part Schematics Acquired 2 | . . . . . 2 . . . Parts Built . | . . . . . . . . . Matter . | . . . . . . . . . Time . | . . . . . . . . . Total Part Build Rating . | . . . . . . . . . Parts Repaired 2 | . . . . . . . 2 . Time 70 | . . . . . . . 70 . Parts Recycled . | . . . . . . . . . Recycled Matter . | . . . . . . . . . Retrieved Matter . | . . . . . . . . . Retrieved Components 9 | . . . . . 9 . . . Parts Scanalyzed 3 | . . . . . 3 . . . Part Schematics Acquired 2 | . . . . . 2 . . . Parts Damaged . | . . . . . . . . . Bothacking | -11 -10 -10 -10 -9 -8 -8 -8 -8 ------------ Run | Scr Mat Min Exi Min Mat Gar Mat Sto Used RIF Installer 1 | . . . . . . 1 . . Robots Hacked . | . . . . . . . . . Non-combat . | . . . . . . . . . Combat . | . . . . . . . . . Robot Hacks Applied . | . . . . . . . . . Relay Couplers Released 8 | . . . . . . 8 . . Machine Destruction 8 | . . . . . . 8 . . Attached 1 | . . . . . . 1 . . Robots Rewired 4 | . . . 4 . . . . . Allies Hacked . | . . . . . . . . . Hacks Repelled . | . . . . . . . . . Allies | -11 -10 -10 -10 -9 -8 -8 -8 -8 -------- Run | Scr Mat Min Exi Min Mat Gar Mat Sto Total Allies 15 | . 1 . 4 . . . . 10 Largest Group 10 | . 1 1 5 5 . . . 10 Highest-Rated Group 173 | . 10 10 68 68 . . . 173 Highest-Rated Ally 29 | . 10 10 21 21 . . . 29 Total Orders 12 | . 3 2 . . . . . 7 GOTO 4 | . 1 1 . . . . . 2 ROAM 1 | . 1 . . . . . . . FOLLOW 2 | . 1 1 . . . . . . EXPLORE 5 | . . . . . . . . 5 Ally Attacks 125 | . . . . 36 . . . 89 Total Damage 1944 | . . . . 760 . . . 1184 Kills 29 | . . . . 14 . . . 15 Allies Corrupted . | . . . . . . . . . Allies Melted . | . . . . . . . . . Intel | -11 -10 -10 -10 -9 -8 -8 -8 -8 ------- Run | Scr Mat Min Exi Min Mat Gar Mat Sto Robot Analysis Total 5 | . 2 . . 2 1 . . . Derelict Logs Recovered 3 | . . 1 . 2 . . . . Drone Launches 10 | . . . . . . . . 10 Drone Recoveries . | . . . . . . . . . Exploration | -11 -10 -10 -10 -9 -8 -8 -8 -8 ------------- Run | Scr Mat Min Exi Min Mat Gar Mat Sto Turns Passed 9078 | 69 732 797 804 820 2724 1465 1249 418 Spaces Moved 5338 | 57 523 586 617 634 1441 828 532 120 Core 5 | 5 . . . . . . . . Treads 15 | . . 15 . . . . . . Legs . | . . . . . . . . . Wheels 5318 | 52 523 571 617 634 1441 828 532 120 Hover . | . . . . . . . . . Flight . | . . . . . . . . . Fastest Speed 50 | 50 100 110 120 120 120 140 150 145 Average Speed 133 | 95 114 119 120 120 141 145 156 154 Slowest Speed 220 | 100 120 220 120 120 170 150 220 155 Overloaded Moves . | . . . . . . . . . Propulsion Burnouts . | . . . . . . . . . Robots Hopped . | . . . . . . . . . Cave-ins Triggered . | . . . . . . . . . Exploration Rate (%) 66 | 5 77 99 90 95 91 47 51 43 Regions Visited 8 Branch Regions 4 Pre-discovered Areas 3 | . . 1 1 1 . . . . Known Exits Taken 3 | . . . . 1 1 . 1 . Unknown Exits Taken 4 | 1 1 1 1 . . . . . Scrap Searched 2 | . . 1 . 1 . . . . Spaces Dug 41 | . . . . . 17 15 9 . Terrain Destroyed 136 | . . . . . 49 52 14 21 Melee 29 | . . . . . 17 3 9 . Projectile 8 | . . . . . 3 . 5 . AOE 99 | . . . . . 29 49 . 21 Actions | -11 -10 -10 -10 -9 -8 -8 -8 -8 --------- Run | Scr Mat Min Exi Min Mat Gar Mat Sto Total 6585 | 68 594 634 670 678 1874 981 773 313 Wait 447 | . 13 3 14 24 138 12 92 151 Move 5330 | 56 522 585 616 633 1441 826 531 120 Hop . | . . . . . . . . . Pick Up 96 | 6 8 4 3 3 47 12 12 1 Fast Attach 29 | 6 3 1 . . 9 4 6 . Attach 28 | . . 2 . . 15 6 4 1 Detach 4 | . . . . . 2 2 . . Swap 89 | . 4 5 1 1 33 21 17 7 Drop 68 | . 6 2 . 3 33 8 12 4 Fire 332 | . 38 32 . 3 120 42 73 24 Melee 107 | . . . 10 11 36 24 26 . Ram . | . . . . . . . . . Kick . | . . . . . . . . . Crush . | . . . . . . . . . Escape Stasis 24 | . . . . . . 24 . . Rewire 26 | . . . 26 . . . . . Trap . | . . . . . . . . . Miscellaneous 5 | . . . . . . . . 5 Route ------- -11/Scrapyard -10/Materials (discovered 3 exits: [*Mat x2] / [*Min]) -10/Mines (discovered 3 exits: [*Mat x2] / *Exi) -10/Exiles -9/Mines (discovered 2 exits: *Mat x2) -8/Materials (discovered 3 exits: [*Fac x2] / Gar) -8/Garrison -8/Materials (discovered 3 exits: [*Fac] / *Sto x2) -8/Storage History --------- Turn | Location | Event 7 | -11/Scrapyard | Discovered new exit (range 16) 70 | -11/Scrapyard | Entered Materials 313 | -10/Materials | Discovered new exit (range 10) 314 | -10/Materials | Build established: Mutant 403 | -10/Materials | Discovered new exit (range 4) 584 | -10/Materials | Central database locked down 625 | -10/Materials | Discovered new exit (range 13) 652 | -10/Materials | Build established: Hauler-Mutant 802 | -10/Materials | Entered Mines 802 | -10/Mines | Accompanied by 1 ally 989 | -10/Mines | Discovered new exit (range 16) 1095 | -10/Mines | Learned location of Storage (-8) 1316 | -10/Mines | Discovered new exit (range 4) 1340 | -10/Mines | Deemed a non-threat by the Exiles lab entrance 1341 | -10/Mines | Discovered new exit (range 5) 1599 | -10/Mines | Entered Exiles 1599 | -10/Exiles | Found Exiles lab destroyed 1599 | -10/Exiles | Accompanied by 1 ally 2014 | -10/Exiles | Learned location of Zion (-6) 2106 | -10/Exiles | Opened EX-Vault 2115 | -10/Exiles | Found Modified TNC 2281 | -10/Exiles | Build established: Commander-Mutant 2373 | -10/Exiles | Discovered new exit (range 15) 2403 | -10/Exiles | Entered Mines 2403 | -9/Mines | Accompanied by 5 allies 2408 | -9/Mines | Identified exit to Materials 2425 | -9/Mines | Met a Derelict bent on vengeance 2744 | -9/Mines | Received a Rocket Launcher from a helpful Derelict 2827 | -9/Mines | Assembled infested the area 3149 | -9/Mines | Build established: Hauler-Mutant 3223 | -9/Mines | Entered Materials 3223 | -8/Materials | Evolved 4 slots: Utility x3, Weapon x1 3503 | -8/Materials | Destroyed 10 combat bots 3592 | -8/Materials | Lost 4 parts (1p1n2u) 5086 | -8/Materials | Discovered new exit (range 13) 5223 | -8/Materials | First assault squad dispatched 5328 | -8/Materials | Lost 3 parts (1p1n1w) 5532 | -8/Materials | Discovered new exit (range 16) 5751 | -8/Materials | Build established: Hauler-Tank 5947 | -8/Materials | Identified exit to Garrison 5947 | -8/Materials | Entered Garrison 5981 | -8/Garrison | Installed Relay Interface Framework 6305 | -8/Garrison | Garrison Relay disabled 6367 | -8/Garrison | Triggered checkpoint 6385 | -8/Garrison | Triggered checkpoint 6387 | -8/Garrison | Build established: Hauler-Mutant 6403 | -8/Garrison | Triggered checkpoint 6617 | -8/Garrison | Triggered checkpoint 6762 | -8/Garrison | Triggered checkpoint 6830 | -8/Garrison | Lost 5 parts (2n1u2w) 6912 | -8/Garrison | Garrison Relay disabled 6944 | -8/Garrison | Discovered new exit (range 14) 7412 | -8/Garrison | Entered Materials 7465 | -8/Materials | Repaired Flak Gun 7496 | -8/Materials | Repaired Hcp. Storage Unit 7766 | -8/Materials | Discovered new exit (range 4) 7782 | -8/Materials | Core integrity fell below 50% 7848 | -8/Materials | Discovered new exit (range 16) 8212 | -8/Materials | First assault squad dispatched 8329 | -8/Materials | Destroyed 8 combat bots 8329 | -8/Materials | Core integrity fell below 20% 8622 | -8/Materials | Identified exit to Storage 8661 | -8/Materials | Entered Storage 8912 | -8/Storage | Assisted by bots powering up and referring to "LRC-V3" 9044 | -8/Storage | Garrison activated, responded to threat 9079 | -8/Storage | Destroyed by Y-45 Defender with Heavy Assault Rifle Last Messages --------------- 09057_ U-05 Engineer lays Concrete. 09059_ U-05 Engineer builds a Wall. 09060_ Trooper 3g destroyed. 09061_ System corrupted: Lightning Gun failed to cycle. 09062_ U-05 Engineer lays Concrete. 09063_ Hrd. Medium Armor Plating destroyed. 09063_ U-05 Engineer lays Concrete. 09064_ R-06 Scavenger collects Com. Matter Pod. 09064_ U-05 Engineer lays Concrete. 09068_ R-06 Scavenger collects Com. Matter Pod. 09069_ U-05 Engineer builds a Door. 09071_ Lightning Gun destroyed. 09073_ U-05 Engineer builds a Wall. 09075_ Y-45 Defender system terminally corrupted. 09075_ Unknown Device fried. 09075_ Beam Rifle fried. 09076_ K-01 Serf destroyed. 09076_ K-01 Serf collects debris. 09076_ Destroyed Welding Torch. 09078_ R-06 Scavenger collects Wheel. Map ----- +----------------------------------------------------+ | ## """ """ # """ """ #?#!!!!# # | | ## # #?###### # | | #/##################+############+#############/## | | #### ########## !%* % % # | | # + % [= # | | ## # """ """ ## % # | | ?# # """ """ ## ###########+######### ###### | | ?# %/ """ """ ## # # #???# #???## | | ?# # ## # T / """"" #???# #???# | | ?# ####+########## #! # "???" #???# #???# | | # ?????????????# # # ""??" ##### #???#T | | # T" ?????????????# + # "??"" ## #????# | | # " ????? ??????# # """ # "???" ## ###### | | # #????? """?# # """ # """"" ## | | ######????# "Y" # # """%# % ## ######### | | ??????????# # # ######+##### #???????# | | ????????? # * # # #????# #???#[#??###### | | ????????? " % # #????# #???#%#??# # | | ??????????# [ # ????# #???#*#??# # | | ??????????# ########???# #####%#### # | | ??????????# #??????????# =*%%===%+ # | | ??????????# #??????????#!!%=*%=%[ # # | | ??????????# =!# ############ =%%[ # + | | ???????????# *#%##u Y r k ![=! # # | | ????????????# %!= * k #####%##### # # | | ????????# Y*[ %[ @* #???#!#???# # # | | ????????" """ +## #########+##???#%#??## ###### | | ??????????""" ???????? ????#*#??# ##### | | ???????????"" ????????"" ???#=#??# | | ??????????? # ???????""" ??# #??# ##### | | ????????? ?# ????????""" ??#=#??#####???? | | ?????????###???# ""??????? ?#%#??????????? | | ???????????????# "??????????"" ###=#??????????? | | ??????????????? "??????????"" #?? ???????????? | | ??????????????##?????????????" #??T???????????? | | ?????????????????????????????? #?? ???????????? | | ??????????????????????????????#####?? ???????????? | | ?????????????????????????????????????????????????? | | ?????????????????????????????????????????????????? | | ?????????????????????????????????????????????????? | | ?????????????????????????????????????????????????? | | ?????????????????????????????????????????????????? | | ?????????????????????????????????????????????????? | | ?????????????????????????????????????????????????? | | ?????????????????????????????????????????????????? | | ?????????????????????????????????????????????????? | | ?????????????????????????????????????????????????? | | ?????????????????????????????????????????????????? | | ?????????????????????????????????????????????????? | | ?????????????????????????????????????????????????? | +----------------------------------------------------+ Best States ------------- Heat Dissipation 45 Energy Generation 18 Energy Capacity 275 Matter Stores 300 Matter Capacity 300 Sight Range 16 Terrain Scan Density 10 Armor Coverage 300 Resistance: KI 30 Evasion (%) 40 Melee Accuracy 8 Recoil Reduction 1 Item Schematics ----------------- Hcp. Storage Unit | -8/Materials | Scanalyzed Lrg. Storage Unit | -8/Materials | Scanalyzed Robot Schematics ------------------ None Fabricated ------------ Nothing Alien Tech Used ----------------- None Achievements -------------- None Challenges ------------ None Game ------ Seed ForceLinkedDerivative Manual? 0 Play Time 01:26:31 Cumulative 821.1 hours Start 2019.11.12 @ 01:14:45 End 2019.11.12 @ 02:45:44 Sessions 1 Manual Loads 0 Difficulty Rogue Special Mode None Game No. 323 Rogue 323 Adventurer 0 Explorer 0 Win Type - Total 21 Types 11/1/7/0/0/0/2 Lore% 95 Gallery% 95 Achievement% 79 Wizard Run 0 Options --------- ASCII 0 Keyboard 0 Movement Vi Keybinds 0 Fullscreen 0 Font 12/Crisp Map View 76x50 Tactical HUD 1 Map Filters NONE Filters NONE Steam 1 RUN: 9ec0e3c8-f6e4-4402-a5c4-d6b1fce10218